bitfinex-derivatives/quotes_SOLF0:USTF0_20250523
["timestamp","ask_amount","ask_price","bid_price","bid_amount"]
[1747988614617,112.84,184.13,184.12,0.03697541]
[1747988614913,118.2712,184.13,184.12,0.03697541]
[1747988615608,5.4322,184.1,184.06,67.4332]
[1747988615915,112.84,184.13,184.0,216.06]
[1747988616213,5.4326,184.09,184.04,5.4336]
[1747988616407,112.82,184.08,184.04,5.4336]
[1747988616606,112.85622869,184.08,184.04,5.46947188]
[1747988616915,112.85622869,184.08,184.04,0.03587188]
[1747988617513,112.85622869,184.08,184.04,5.46967188]
[1747988618116,5.433,184.07,184.04,0.03587188]
[1747988618414,112.85622869,184.08,184.04,0.03587188]
[1747988618710,112.85622869,184.08,184.05,62.0]
[1747988619217,118.28892869,184.08,184.05,62.0]
[1747988619420,112.85622869,184.08,184.05,62.0]
[1747988619723,5.433,184.07,184.05,62.0]
[1747988620018,112.85622869,184.08,184.04,0.03587188]
[1747988620621,118.28892869,184.08,184.04,5.46957188]
[1747988620822,112.85622869,184.08,184.04,0.03587188]
[1747988621022,0.03622869,184.08,184.04,0.03587188]
[1747988621723,0.03622869,184.08,184.06,5.4332]
[1747988623018,0.03622869,184.08,184.07,62.0]
[1747988623424,0.03622869,184.08,184.05,5.4335]
[1747988623623,0.03622869,184.08,184.04,0.03587188]
[1747988624019,0.03622869,184.08,184.05,5.4333]
[1747988624424,0.03622869,184.08,184.04,0.03587188]
[1747988624723,0.03622869,184.08,184.07,5.4329]
[1747988625218,0.03622869,184.08,184.04,0.03587188]
[1747988625822,0.03622869,184.08,184.07,5.4329]
[1747988626526,0.03622869,184.08,184.07,67.4329]
[1747988627025,0.03622869,184.08,184.07,62.0]
[1747988627326,0.03622869,184.08,184.04,0.03587188]
[1747988628625,5.433,184.07,184.04,0.03587188]
[1747988628827,0.03622869,184.08,184.04,0.03587188]
[1747988629024,112.84,184.07,184.04,0.03587188]
[1747988629630,112.84,184.07,184.05,5.4335]
[1747988629820,112.84,184.07,184.04,0.03587188]
[1747988630328,112.84,184.07,184.04,62.03587188]
[1747988630528,112.84,184.07,184.04,67.46947188]
[1747988630929,112.84,184.07,184.04,62.03587188]
[1747988632333,118.2731,184.07,184.04,62.03587188]
[1747988632628,112.84,184.07,184.04,62.03587188]
[1747988632829,112.84,184.07,184.05,5.4335]
[1747988633332,112.84,184.07,184.04,67.46957188]
[1747988634228,0.03622869,184.08,184.07,5.4329]
[1747988634427,0.03622869,184.08,184.04,62.03587188]
[1747988634929,0.03622869,184.08,184.05,5.4333]
[1747988635133,0.03622869,184.08,184.04,62.03587188]
[1747988635432,0.03622869,184.08,184.04,0.03587188]
[1747988635634,2.01062869,184.08,184.04,0.03587188]
[1747988635933,5.433,184.07,184.04,5.46947188]
[1747988636326,2.01062869,184.08,184.04,0.03587188]
[1747988636527,7.44342869,184.08,184.05,5.4333]
[1747988636822,7.44342869,184.08,184.04,0.03587188]
[1747988637024,7.44342869,184.08,184.04,5.46957188]
[1747988637337,5.433,184.07,184.04,5.46957188]
[1747988637538,5.433,184.07,184.04,0.03587188]
[1747988638031,0.03622869,184.08,184.05,5.4333]
[1747988638238,0.03622869,184.08,184.04,0.03587188]
[1747988638435,0.03622869,184.08,184.05,62.0]
[1747988638637,0.03622869,184.08,184.05,67.4333]
[1747988638833,0.03622869,184.08,184.05,62.0]
[1747988639034,112.84,184.07,184.05,62.0]
[1747988639938,112.84,184.07,184.06,5.433]
[1747988640339,0.03622869,184.08,184.05,62.0]
[1747988640639,0.03622869,184.08,184.04,0.03587188]
[1747988641139,5.4334,184.06,184.04,0.03587188]
[1747988641937,9.91700044,184.05,184.04,0.03587188]
[1747988642335,5.4348,184.01,183.95,1.8402]
[1747988642535,112.82,184.01,183.94,112.82]
[1747988642840,112.82,184.01,183.93,103.24]
[1747988643039,118.2547,184.01,183.98,5.4354]
[1747988643241,112.82,184.01,183.93,103.24]
[1747988643441,0.03711861,183.99,183.95,0.0375151]
[1747988643741,0.03711861,183.99,183.96,62.0]
[1747988644043,0.03711861,183.99,183.98,5.4356]
[1747988645837,0.03711861,183.99,183.95,0.0375151]
[1747988646742,5.4361,183.97,183.95,0.0375151]
[1747988647040,112.84,183.96,183.95,0.0375151]
[1747988647543,117.32561896,183.96,183.84,7.32902345]
[1747988647741,117.32561896,183.96,183.84,12.70793161]
[1747988648135,117.32561896,183.96,183.85,3.6895]
[1747988648332,4.48561896,183.96,183.87,5.37890816]
[1747988648642,0.04088208,183.93,183.92,62.0]
[1747988649143,0.04088208,183.93,183.92,67.4374]
[1747988652942,112.86,184.03,184.0,5.4349]
[1747988653145,112.86,184.03,183.93,3.7804]
[1747988653643,112.86,184.03,184.0,5.4348]
[1747988653840,112.86,184.03,184.0,5.47118176]
[1747988654045,112.90019486,184.03,184.0,5.47118176]
[1747988654238,112.90019486,184.03,184.01,5.4347]
[1747988654649,112.90019486,184.03,184.0,0.03638176]
[1747988655446,112.90019486,184.03,184.0,5.47118176]
[1747988656048,112.90019486,184.03,184.01,62.0]
[1747988656444,5.4344,184.02,184.01,62.0]
[1747988656747,2.59634182,184.02,184.0,0.03638176]
[1747988656946,1.8806,184.02,183.89,103.26]
[1747988657148,5.4356,183.99,183.95,5.4363]
[1747988657348,112.86,183.98,183.95,5.4363]
[1747988657650,5.4361,183.97,183.88,118.23890816]
[1747988657841,0.03486767,183.94,183.91,0.03605539]
[1747988658041,0.03486767,183.94,183.92,5.4372]
[1747988658746,0.03486767,183.94,183.93,5.4371]
[1747988659243,6.767e-05,183.94,183.93,5.4371]
[1747988659446,112.88,184.03,183.91,0.03605539]
[1747988659642,112.88,184.03,183.93,62.0]
[1747988659842,5.4349,184.01,183.93,62.0]
[1747988660453,0.03599025,183.99,183.95,0.03474771]
[1747988660651,0.03599025,183.99,183.98,5.4356]
[1747988663555,0.03599025,183.99,183.98,67.4356]
[1747988664253,0.03599025,183.99,183.95,0.03474771]
[1747988664655,0.03599025,183.99,183.97,5.4357]
[1747988666757,0.03599025,183.99,183.98,5.4356]
[1747988667154,0.03599025,183.99,183.98,67.4356]
[1747988673361,0.03599025,183.99,183.95,0.03474771]
[1747988673662,0.03599025,183.99,183.95,1.94954771]
[1747988673962,0.03599025,183.99,183.98,5.4356]
[1747988674464,9.025e-05,183.99,183.98,5.4356]
[1747988676066,5.04893442,184.11,183.98,21.68981015]
[1747988676362,5.04893442,184.11,184.03,62.0]
[1747988676558,5.04893442,184.12,184.04,3.8486]
[1747988677067,0.03425743,184.1,184.06,0.03474735]
[1747988677258,0.03425743,184.1,184.09,5.4322]
[1747988681772,0.03425743,184.1,184.08,5.4326]
[1747988682072,0.03425743,184.1,184.06,0.03474735]
[1747988682772,0.03425743,184.1,184.09,5.4324]
[1747988683474,0.03425743,184.1,184.06,0.03474735]
[1747988683775,5.4326,184.09,184.06,0.03474735]
[1747988683967,0.03425743,184.1,184.06,0.03474735]
[1747988684166,112.82,184.09,184.06,0.03474735]
[1747988684475,118.2526,184.09,184.06,0.03474735]
[1747988684875,0.03425743,184.1,184.06,0.03474735]
[1747988685078,112.85425743,184.1,184.06,0.03474735]
[1747988685374,0.03425743,184.1,184.06,0.03474735]
[1747988685675,0.03425743,184.1,184.07,5.4328]
[1747988686763,0.03425743,184.1,184.08,5.4325]
[1747988687167,0.03425743,184.1,184.06,0.03474735]
[1747988687374,0.03425743,184.1,184.08,5.4325]
[1747988688187,0.03425743,184.1,184.07,5.4328]
[1747988688885,5.46635743,184.1,184.07,5.4328]
[1747988689380,0.03425743,184.1,184.09,5.4324]
[1747988690990,0.03425743,184.1,184.08,5.4326]
[1747988691183,0.03425743,184.1,184.06,0.03474735]
[1747988691493,0.03425743,184.1,184.08,5.4326]
[1747988692294,0.03425743,184.1,184.09,5.4324]
[1747988705201,0.03425743,184.1,184.09,67.4324]
[1747988710502,0.03425743,184.1,184.09,180.2324]
[1747988710503,5.743e-05,184.1,184.09,180.2324]
[1747988711603,117.84893442,184.2,184.09,180.24]
[1747988711805,117.84893442,184.2,184.1,5.37901015]
[1747988712104,117.84893442,184.2,184.18,5.4295]
[1747988713202,117.84893442,184.2,184.17,5.47016293]
[1747988713403,4.47414797,184.19,184.17,5.47016293]
[1747988714504,112.8,184.2,184.17,5.47016293]
[1747988714903,112.8,184.2,184.18,62.0]
[1747988715104,469.36,184.24,184.18,62.0]
[1747988715503,117.82893442,184.25,184.18,62.0]
[1747988715704,2.59465773,184.24,184.18,62.0]
[1747988715903,117.82893442,184.25,184.18,62.0]
[1747988716300,5.04893442,184.25,184.24,5.4279]
[1747988716605,6.73191256,184.28,184.24,112.78]
[1747988716805,6.73191256,184.32,184.28,5.4266]
[1747988716994,2.59243531,184.31,184.28,5.46734532]
[1747988717198,6.73191256,184.32,184.28,5.46734532]
[1747988717401,6.73191256,184.32,184.28,0.04074532]
[1747988719605,6.73191256,184.32,184.29,62.0]
[1747988720305,4.42908051,184.33,184.29,62.0]
[1747988720504,5.4261,184.31,184.29,62.0]
[1747988720908,4.42908051,184.33,184.29,62.0]
[1747988721205,5.4258,184.32,184.29,62.0]
[1747988721506,5.4256,184.32,184.29,62.0]
[1747988721705,5.4256,184.32,184.29,67.4264]
[1747988722102,112.74,184.36,184.29,62.0]
[1747988722306,112.74,184.36,184.3,5.4259]
[1747988722502,112.74,184.36,184.3,108.5659]
[1747988722698,5.4252,184.34,184.3,108.5659]
[1747988723104,112.74,184.36,184.3,103.14]
[1747988723806,5.4255,184.33,184.3,103.14]
[1747988724307,5.4251,184.34,184.3,108.566]
[1747988724708,112.74,184.36,184.3,108.566]
[1747988724912,5.4253,184.33,184.3,108.566]
[1747988725408,5.4253,184.33,184.31,62.0]
[1747988725597,112.74,184.36,184.31,62.0]
[1747988726310,112.74,184.36,184.3,103.14]
[1747988726496,481.11901015,184.36,184.28,0.04074532]
[1747988726901,5.4265,184.29,184.28,0.04074532]
[1747988734011,5.4279,184.24,184.23,62.0]
[1747988734205,3.7736,184.3,184.23,62.0]
[1747988734412,116.4536,184.3,184.23,62.0]
[1747988734719,116.4536,184.3,184.25,5.4274]
[1747988734916,116.4536,184.3,184.23,62.0]
[1747988735117,0.04027627,184.28,184.25,0.03494585]
[1747988735417,0.04027627,184.28,184.25,5.46234585]
[1747988736018,0.04027627,184.28,184.26,5.4272]
[1747988737318,5.46707627,184.28,184.26,5.4272]
[1747988738318,0.04027627,184.28,184.26,5.4272]
[1747988739219,0.04027627,184.28,184.25,0.03494585]
[1747988740319,0.04027627,184.28,184.27,5.4271]
[1747988743325,0.04027627,184.28,184.25,0.03494585]
[1747988743825,5.46707627,184.28,184.26,5.4273]
[1747988744525,0.04027627,184.28,184.26,5.4273]
[1747988744723,0.04027627,184.28,184.25,5.46244585]
[1747988745019,0.04027627,184.28,184.25,0.03494585]
[1747988745619,112.68,184.27,184.25,0.03494585]
[1747988745925,112.68,184.27,184.19,112.68]
[1747988746125,114.6457,184.27,184.19,112.68]
[1747988746424,114.6457,184.27,184.17,572.34]
[1747988746425,483.02471015,184.27,184.17,103.12]
[1747988746825,5.4284,184.23,184.2,0.03925859]
[1747988747729,0.04064555,184.24,184.2,0.03925859]
[1747988748026,112.72064555,184.24,184.2,0.03925859]
[1747988748332,0.04064555,184.24,184.2,0.03925859]
[1747988748925,0.04064555,184.24,184.21,62.0]
[1747988749224,0.04064555,184.24,184.23,5.4282]
[1747988749429,0.04064555,184.24,184.21,62.0]
[1747988750528,5.46874555,184.24,184.21,67.4286]
[1747988751131,5.46874555,184.24,184.21,62.0]
[1747988751325,0.04064555,184.24,184.21,62.0]
[1747988751629,0.04064555,184.24,184.22,5.4285]
[1747988751832,0.04064555,184.24,184.21,62.0]
[1747988752232,0.04064555,184.24,184.22,5.4285]
[1747988752431,0.04064555,184.24,184.21,62.0]
[1747988752633,0.04064555,184.24,184.23,5.4282]
[1747988755937,0.04064555,184.24,184.22,5.4284]
[1747988756639,5.46864555,184.24,184.22,5.4284]
[1747988757440,0.04064555,184.24,184.22,5.4284]
[1747988758344,5.46854555,184.24,184.22,5.4284]
[1747988758746,4.448009,184.23,184.22,5.4284]
[1747988759642,4.448009,184.23,184.21,67.4287]
[1747988760238,0.04064555,184.24,184.2,0.03925859]
[1747988760643,5.4288,184.21,184.2,0.03925859]
[1747988760942,0.04064555,184.24,184.2,0.03925859]
[1747988761138,2.59961271,184.23,184.2,0.03925859]
[1747988761335,5.4288,184.21,184.2,0.03925859]
[1747988761531,0.04064555,184.24,184.2,0.03925859]
[1747988761844,5.4286,184.22,184.2,0.03925859]
[1747988763244,5.4286,184.22,184.21,62.0]
[1747988764343,9.87872951,184.22,184.21,62.0]
[1747988765044,5.4288,184.21,184.2,0.03925859]
[1747988765639,8.02762092,184.21,184.2,0.03925859]
[1747988765839,12.47775043,184.21,184.2,0.03925859]
[1747988766644,4.45012951,184.21,184.2,0.03925859]
[1747988767342,4.45012951,184.21,184.2,5.46835859]
[1747988767646,0.04064555,184.24,184.2,5.46835859]
[1747988767647,4.45012951,184.23,184.2,0.03925859]
[1747988767943,4.45012951,184.23,184.22,5.4285]
[1747988769845,0.04064555,184.24,184.23,5.4282]
[1747988770049,112.64,184.29,184.21,118.01901015]
[1747988770245,6.73191256,184.31,184.22,103.14]
[1747988770649,5.4258,184.32,184.23,1.8119]
[1747988771153,0.03504562,184.29,184.28,5.4265]
[1747988772051,0.03504562,184.29,184.28,67.4265]
[1747988777663,118.1821,184.37,184.32,5.4256]
[1747988777864,2.59692702,184.36,184.32,5.4256]
[1747988778068,2.59692702,184.35,184.32,5.4256]
[1747988778266,2.59692702,184.34,184.32,5.4256]
[1747988778457,118.1821,184.37,184.31,5.4258]
[1747988778657,2.59612719,184.36,184.32,0.03821319]
[1747988778857,8.02102719,184.35,184.32,0.03821319]
[1747988779060,5.4249,184.35,184.32,0.03821319]
[1747988779258,112.62,184.37,184.32,0.03821319]
[1747988779457,5.06231485,184.38,184.32,0.03821319]
[1747988779768,5.06231485,184.38,184.37,5.4241]
[1747988781061,5.06231485,184.38,184.36,103.12]
[1747988781760,6.73191256,184.41,184.37,5.37901015]
[1747988781965,6.73191256,184.41,184.39,5.4233]
[1747988782272,6.73191256,184.41,184.37,0.03743205]
[1747988782459,118.0418,184.45,184.39,5.4234]
[1747988782664,112.62,184.45,184.4,62.0]
[1747988782872,5.4223,184.44,184.4,62.0]
[1747988783066,112.62,184.45,184.4,62.0]
[1747988784575,5.4225,184.43,184.4,62.0]
[1747988784777,112.62,184.45,184.37,0.03743205]
[1747988785274,5.4232,184.41,184.37,5.46143205]
[1747988785668,363.0,184.44,184.37,0.03743205]
[1747988786073,1.9183,184.43,184.37,0.03743205]
[1747988786875,363.0,184.42,184.37,0.03743205]
[1747988787479,363.0,184.42,184.38,5.4239]
[1747988787977,368.4229,184.42,184.38,5.4239]
[1747988788380,363.0,184.42,184.39,5.4234]
[1747988789283,112.56,184.43,184.37,0.03743205]
[1747988790281,363.0,184.45,184.37,0.03743205]
[1747988790882,363.0,184.45,184.37,112.49743205]
[1747988792084,363.0,184.45,184.43,5.4221]
[1747988792285,112.54,184.46,184.43,5.4221]
[1747988792480,112.54,184.46,184.42,0.03953315]
[1747988792682,112.54,184.46,184.43,5.4223]
[1747988792883,112.54,184.46,184.42,0.03953315]
[1747988793079,112.54,184.46,184.43,5.4223]
[1747988793480,112.54,184.46,184.42,0.03953315]
[1747988793880,5.4219,184.45,184.42,0.03953315]
[1747988794086,112.54,184.46,184.42,0.03953315]
[1747988795381,112.54,184.46,184.43,5.4223]
[1747988795882,112.54,184.46,184.44,5.4221]
[1747988796190,112.54,184.46,184.42,0.03953315]
[1747988796488,112.54,184.46,184.43,5.4223]
[1747988796683,112.54,184.46,184.42,0.03953315]
[1747988797180,363.0,184.49,184.42,0.03953315]
[1747988797394,112.44,184.48,184.42,0.03953315]
[1747988797688,363.0,184.49,184.42,0.03953315]
[1747988797887,475.44,184.49,184.42,0.03953315]
[1747988799394,475.44,184.49,184.45,5.4217]
[1747988799690,6.73191256,184.59,184.43,112.44]
[1747988799998,112.44,184.58,184.49,0.04008713]
[1747988800392,5.4203,184.51,184.49,0.04008713]
[1747988800590,112.44,184.53,184.49,0.04008713]
[1747988800792,1.8817,184.52,184.49,0.04008713]
[1747988800992,5.4203,184.51,184.49,0.04008713]
[1747988802397,1.8817,184.52,184.49,0.04008713]
[1747988803193,5.4204,184.5,184.49,0.04008713]
[1747988803800,7.3017,184.52,184.49,5.46078713]
[1747988804001,1.8817,184.52,184.49,0.04008713]
[1747988805302,5.4203,184.51,184.49,0.04008713]
[1747988805496,1.8817,184.52,184.49,0.04008713]
[1747988806203,364.8817,184.52,184.49,0.04008713]
[1747988806597,5.4203,184.51,184.49,0.04008713]
[1747988806899,364.8817,184.52,184.49,0.04008713]
[1747988807088,5.4204,184.5,184.49,0.04008713]
[1747988807293,363.0,184.49,184.4,103.02]
[1747988807498,475.4,184.48,184.4,103.02]
[1747988807801,475.4,184.48,184.42,5.4225]
[1747988808104,475.4,184.48,184.4,103.02]
[1747988808293,475.4,184.48,184.42,0.04047636]
[1747988808294,5.4219,184.45,184.42,0.04047636]
[1747988808695,0.03796295,184.46,184.42,0.04047636]
[1747988808900,5.4224,184.43,184.42,0.04047636]
[1747988809094,363.03796295,184.46,184.42,0.04047636]
[1747988810497,5.4219,184.45,184.42,5.46307636]
[1747988810803,363.03796295,184.46,184.42,0.04047636]
[1747988811202,5.4219,184.45,184.42,5.46307636]
[1747988812301,363.03796295,184.46,184.42,0.04047636]
[1747988812504,1.8762,184.45,184.42,0.04047636]
[1747988812901,5.4223,184.44,184.42,0.04047636]
[1747988813705,1.8762,184.45,184.43,5.4224]
[1747988814202,1.8762,184.45,184.44,5.4221]
[1747988814898,1.8762,184.45,184.42,0.04047636]
[1747988815204,1.8762,184.45,184.43,5.4224]
[1747988815401,1.8762,184.45,184.42,0.04047636]
[1747988815707,5.4223,184.44,184.42,0.04047636]
[1747988815902,1.8762,184.45,184.4,103.02]
[1747988816107,1.8762,184.45,184.34,112.4]
[1747988816306,364.8762,184.45,184.35,103.02]
[1747988816709,5.4224,184.43,184.38,5.4236]
[1747988816895,5.4224,184.43,184.39,0.04160218]
[1747988817101,0.03878683,184.42,184.39,0.04160218]
[1747988817702,0.03878683,184.42,184.39,5.46510218]
[1747988817899,0.03878683,184.42,184.39,0.04160218]
[1747988818304,0.03878683,184.42,184.39,5.46500218]
[1747988818503,0.03878683,184.42,184.39,0.04160218]
[1747988819202,0.03878683,184.42,184.39,5.46490218]
[1747988819401,0.03878683,184.42,184.39,0.04160218]
[1747988819909,112.45878683,184.42,184.39,0.04160218]
[1747988820101,112.45878683,184.42,184.3,5.37901015]
[1747988820301,5.424,184.38,184.33,5.425]
[1747988820502,5.424,184.38,184.3,103.02]
[1747988820715,3.8297,184.4,184.29,112.42]
[1747988821013,0.03932577,184.36,184.33,0.04137741]
[1747988822012,0.03932577,184.36,184.33,5.46647741]
[1747988823121,0.03932577,184.36,184.33,0.04137741]
[1747988824626,0.03932577,184.36,184.33,5.46647741]
[1747988824827,0.03932577,184.36,184.33,0.04137741]
[1747988825725,0.03932577,184.36,184.35,5.4247]
[1747988827124,0.03932577,184.36,184.33,62.04137741]
[1747988827530,0.03932577,184.36,184.35,5.4247]
[1747988827837,0.03932577,184.36,184.33,0.04137741]
[1747988828127,0.03932577,184.36,184.35,5.4246]
[1747988829129,0.03932577,184.36,184.34,5.4248]
[1747988829722,0.03932577,184.36,184.35,5.4246]
[1747988829923,0.03932577,184.36,184.33,0.04137741]
[1747988832733,0.03932577,184.36,184.33,5.46627741]
[1747988834131,0.03932577,184.36,184.33,0.04137741]
[1747988834933,0.03932577,184.36,184.33,5.46617741]
[1747988835326,0.03932577,184.36,184.33,0.04137741]
[1747988836435,0.03932577,184.36,184.33,5.46637741]
[1747988837542,0.03932577,184.36,184.33,0.04137741]
[1747988838239,0.03932577,184.36,184.35,5.4247]
[1747988838637,0.03932577,184.36,184.33,0.04137741]
[1747988839238,0.03932577,184.36,184.34,5.4248]
[1747988839738,0.03932577,184.36,184.35,5.4247]
[1747988839930,0.03932577,184.36,184.33,0.04137741]
[1747988840341,0.03932577,184.36,184.34,5.4248]
[1747988840644,112.4,184.44,184.35,103.06]
[1747988840833,112.4,184.44,184.36,5.37901015]
[1747988841033,112.4,184.44,184.39,5.4232]
[1747988841538,112.4,184.44,184.36,5.37901015]
[1747988841740,0.03658033,184.42,184.38,0.03883002]
[1747988842945,0.03658033,184.42,184.41,5.4228]
[1747988843239,0.03658033,184.42,184.38,0.03883002]
[1747988843441,0.03658033,184.42,184.39,5.4232]
[1747988844041,0.03658033,184.42,184.38,5.46233002]
[1747988845133,0.03658033,184.42,184.39,62.0]
[1747988845334,0.03658033,184.42,184.38,0.03883002]
[1747988846243,5.423,184.41,184.38,0.03883002]
[1747988846430,0.03658033,184.42,184.38,0.03883002]
[1747988846635,5.4228,184.41,184.38,0.03883002]
[1747988847244,5.4229,184.41,184.38,0.03883002]
[1747988848045,117.83898033,184.42,184.38,0.03883002]
[1747988848446,112.41658033,184.42,184.38,5.46203002]
[1747988848847,0.03658033,184.42,184.38,0.03883002]
[1747988849041,0.03658033,184.42,184.39,5.423]
[1747988849549,0.03658033,184.42,184.38,0.03883002]
[1747988850049,0.03658033,184.42,184.41,5.4226]
[1747988850249,363.0,184.49,184.41,103.04]
[1747988851239,0.03540886,184.47,184.43,0.0415256]
[1747988851545,0.03540886,184.47,184.43,5.4635256]
[1747988852043,0.03540886,184.47,184.43,0.0415256]
[1747988852246,5.4212,184.46,184.43,0.0415256]
[1747988852849,5.4216,184.45,184.43,0.0415256]
[1747988853250,0.03540886,184.47,184.43,0.0415256]
[1747988853448,5.4218,184.44,184.43,0.0415256]
[1747988853843,0.03540886,184.47,184.43,0.0415256]
[1747988854044,112.29540886,184.47,184.43,0.0415256]
[1747988854243,0.03540886,184.47,184.43,0.0415256]
[1747988854445,0.03540886,184.47,184.44,5.4217]
[1747988854644,0.03540886,184.47,184.43,0.0415256]
[1747988855852,0.03540886,184.47,184.44,5.4217]
[1747988856054,0.03540886,184.47,184.43,0.0415256]
[1747988857052,0.03540886,184.47,184.44,5.4217]
[1747988857552,0.03540886,184.47,184.43,5.4635256]
[1747988857748,0.03540886,184.47,184.43,0.0415256]
[1747988858153,0.03540886,184.47,184.44,5.4216]
[1747988858345,0.03540886,184.47,184.43,0.0415256]
[1747988858743,6.87897206,184.54,184.43,0.0415256]
[1747988858744,5.04617206,184.54,184.43,0.0415256]
[1747988859246,5.04617206,184.54,184.48,5.4204]
[1747988859444,5.04617206,184.54,184.42,5.37901015]
[1747988859653,117.30617206,184.54,184.42,5.37901015]
[1747988859851,117.30617206,184.54,184.46,5.45580036]
[1747988860052,5.4195,184.52,184.46,0.03480036]
[1747988860453,5.4199,184.51,184.46,5.45590036]
[1747988860649,5.4199,184.51,184.46,0.03480036]
[1747988861450,5.4199,184.51,184.46,62.03480036]
[1747988862060,5.4199,184.51,184.46,0.03480036]
[1747988862558,5.4199,184.51,184.46,5.45590036]
[1747988862758,5.4199,184.51,184.46,0.03480036]
[1747988862947,5.42,184.5,184.46,0.03480036]
[1747988863456,5.4199,184.51,184.46,5.45600036]
[1747988863651,112.26,184.54,184.46,0.03480036]
[1747988863959,112.24,184.53,184.46,0.03480036]
[1747988864160,112.24,184.53,184.48,5.4204]
[1747988864757,112.24,184.53,184.49,5.4203]
[1747988865359,112.24,184.53,184.51,5.4197]
[1747988865558,112.24,184.53,184.5,0.03891704]
[1747988865959,112.24,184.53,184.51,5.4195]
[1747988866161,2.0003,184.55,184.5,0.03891704]
[1747988866362,365.0003,184.55,184.5,0.03891704]
[1747988866561,365.0003,184.55,184.5,5.45871704]
[1747988866862,365.0003,184.55,184.5,0.03891704]
[1747988867160,365.0003,184.55,184.51,5.4195]
[1747988867555,2.0003,184.55,184.5,103.03891704]
[1747988867753,112.24,184.58,184.52,5.4194]
[1747988868257,112.24,184.58,184.5,108.41792719]
[1747988868460,364.8245,184.59,184.5,108.41792719]
[1747988868661,1.8245,184.59,184.5,103.03891704]
[1747988868862,1.8245,184.59,184.51,5.4195]
[1747988869063,1.8245,184.59,184.5,0.03891704]
[1747988869364,5.4187,184.55,184.5,5.45881704]
[1747988869658,112.22,184.57,184.5,0.03891704]
[1747988869857,363.0,184.56,184.5,0.03891704]
[1747988870063,363.0,184.55,184.43,215.22]
[1747988870261,5.4199,184.51,184.45,5.4215]
[1747988870464,112.22,184.52,184.45,5.4215]
[1747988871062,0.03893071,184.5,184.47,0.03835775]
[1747988871256,5.45903071,184.5,184.47,0.03835775]
[1747988871452,0.03893071,184.5,184.47,0.03835775]
[1747988871657,5.45893071,184.5,184.47,0.03835775]
[1747988873261,5.4205,184.49,184.47,0.03835775]
[1747988873462,0.03893071,184.5,184.47,0.03835775]
[1747988874761,0.03893071,184.5,184.49,5.4203]
[1747988876569,0.03893071,184.5,184.47,5.45905775]
[1747988877369,0.03893071,184.5,184.48,62.0]
[1747988878163,0.03893071,184.5,184.48,67.4205]
[1747988878363,0.03893071,184.5,184.48,62.0]
[1747988879066,0.03893071,184.5,184.49,5.4203]
[1747988879568,0.03893071,184.5,184.48,62.0]
[1747988879770,0.03893071,184.5,184.49,5.4203]
[1747988883165,363.0,184.56,184.54,5.4187]
[1747988883369,5.04617206,184.63,184.48,174.14]
[1747988883370,364.9362,184.62,184.52,102.98]
[1747988883568,477.0562,184.62,184.52,102.98]
[1747988883768,7.3353,184.6,184.52,102.98]
[1747988883964,1.9181,184.6,184.52,102.98]
[1747988884272,1.9181,184.6,184.54,0.03604053]
[1747988884576,112.12,184.59,184.54,0.03604053]
[1747988885473,5.4181,184.57,184.54,0.03604053]
[1747988886370,363.0,184.59,184.48,62.0]
[1747988886680,2.58763911,184.58,184.47,102.98]
[1747988886975,2.58763911,184.57,184.47,102.98]
[1747988887275,4.45064542,184.56,184.45,215.1]
[1747988887467,5.37901015,184.53,184.41,4.8444678]
[1747988887668,0.04048058,184.49,184.45,0.03802383]
[1747988887873,5.4218,184.44,184.41,4.8444678]
[1747988888175,1.8624,184.48,184.41,4.8444678]
[1747988888371,5.4215,184.45,184.41,4.8444678]
[1747988888570,5.4215,184.45,184.39,102.98]
[1747988888768,112.12,184.51,184.45,5.4214]
[1747988888966,5.4205,184.49,184.46,0.0412582]
[1747988889779,5.4203,184.49,184.46,0.0412582]
[1747988890480,5.4206,184.48,184.46,0.0412582]
[1747988890688,0.03585696,184.5,184.46,0.0412582]
[1747988891683,5.4206,184.48,184.46,0.0412582]